Cogmind - Beta 16 @@@ ROGUE MODE // 2025.11.04 @ 16:28:50 Player: CDGotthats Result: Destroyed by NR-3A8(R) with Subdweller Beam Cannon Performance ------------- Evolutions (0) 0 Regions Visited (3) 600 Robots Destroyed (22) 110 Value Destroyed (592) 592 Prototype IDs (0) 0 Alien Tech Used (0) 0 Bonus (0) 0 TOTAL SCORE: 1302 Bonus ------- None Cogmind --------- Core Integrity 0/250 Matter 286/300 Energy 125/125 System Corruption 0% Temperature Cool (9) Movement Flying (37) Location -10/Subcaves Parts ------- > --- POWER (1) -------- Light Ion Engine > --- PROPULSION (2) --- Flight Unit Flight Unit > --- UTILITY (2) ------ Signal Interpreter > --- WEAPON (2) ------- Subdweller Machine Gun > --- INVENTORY (5) ---- Flight Unit ECM Suite Scrap Shield Subdweller Machine Gun Peak State ------------ > --- POWER ------------ Light Nuclear Core > --- PROPULSION ------- Light Treads Light Treads > --- UTILITY ---------- Small Storage Unit Small Matter Pod > --- WEAPON ----------- Assault Rifle Grenade Launcher > --- INVENTORY -------- Ion Engine Aluminum Leg Aluminum Leg Wheel Wheel Compact Wheel Light Assault Rifle Mining Laser [Rating: 9] Favorites ----------- Power Light Ion Engine Engine Light Ion Engine Power Core Light Nuclear Core Propulsion Flight Unit Treads Light Treads Flight Unit Flight Unit Utility Signal Interpreter Device ECM Suite Storage Small Storage Unit Processor Signal Interpreter Weapon Light Assault Rifle Ballistic Gun Light Assault Rifle Launcher Grenade Launcher Special Weapon Mining Laser Build | -11 -10 -10 -10 ------- Run | Yrd Mat Min Sub Slots Evolved . | . . . . Power . | . . . . Propulsion . | . . . . Utility . | . . . . Weapon . | . . . . Parts Attached 20 | 7 4 6 3 Power 3 | 1 1 1 . Engine 2 | 1 . 1 . Core 1 | . 1 . . Reactor . | . . . . Propulsion 5 | 2 . 2 1 Treads 2 | 2 . . . Leg . | . . . . Wheel . | . . . . Hover . | . . . . Flight 3 | . . 2 1 Utility 5 | 2 1 2 . Device 2 | . . 2 . Storage 2 | 2 . . . Processor 1 | . 1 . . Hackware . | . . . . Protection . | . . . . Artifact . | . . . . Weapon 7 | 2 2 1 2 Energy Gun . | . . . . Energy Cannon . | . . . . Ballistic Gun 4 | 2 . 1 1 Ballistic Cannon . | . . . . Launcher 2 | . 2 . . Special Weapon 1 | . . . 1 Impact Weapon . | . . . . Slashing Weapon . | . . . . Piercing Weapon . | . . . . Special Melee Weapon . | . . . . Unidentified Prototypes . | . . . . Parts Lost 5 | . 1 1 3 Power . | . . . . Propulsion 1 | . . . 1 Utility . | . . . . Weapon 4 | . 1 1 2 Highest Loss Streak 2 | . 1 1 2 To Critical Strikes . | . . . . Average Backups 5 | 3 7 4 3 Power . | . 1 . . Propulsion 2 | 2 5 2 1 Utility . | . . 1 1 Weapon . | . 1 1 . Tool/Special . | . . . . Unused Backups 9 | . . 6 3 Power 1 | . . 1 . Propulsion 6 | . . 5 1 Utility 1 | . . . 1 Weapon 1 | . . . 1 Tool/Special . | . . . . Average Slot Usage (%) 95 | . 99 96 89 Engine 9 | . 5 8 14 Core 4 | . 8 5 . Treads 11 | . 28 4 . Flight 16 | . . 23 28 Device 4 | . . 8 5 Storage 9 | . 26 2 . Processor 9 | . 1 14 14 Ballistic Gun 20 | . 17 25 18 Launcher 4 | . 10 2 . Special Weapon 2 | . . . 7 Peak Build Rating 9 | 7 9 9 7 Average Rating 7 | 5 8 7 6 On Entrance 5 | . 7 9 7 Avg Prop Armor Cover (%) . | . . . . Naked Turns . | . . . . Heaviest Build 16 | 14 16 14 9 Greatest Support 40 | 40 40 40 8 Greatest Overweight (x) 1 | . . 1 1 Average Overweight (x) . | . . . . Largest Inventory Capacity 8 | 8 8 8 5 Average Capacity 6 | 7 8 5 5 Most Carried 8 | 6 8 8 5 Average Carried 5 | 3 7 4 4 Final Capacity 8 | 8 8 5 5 Final Carried 8 | 6 8 4 5 Class Distribution -------------------- 55% | Scavenger-Mutant 44% | Mutant Dominant Class ---------------- Mutant | -10/Materials Scavenger-Mutant | -10/Mines Scavenger-Mutant | -10/Subcaves Resources | -11 -10 -10 -10 ----------- Run | Yrd Mat Min Sub Matter Collected 666 | 283 220 108 55 Remotely . | . . . . Salvage Created 611 | 83 366 58 104 Parts 43 | 3 22 11 7 Haulers Intercepted . | . . . . Recyclers Shooed . | . . . . Parts Field Recycled . | . . . . Retrieved Matter . | . . . . Parts Self-Destructed 5 | . . . 5 Prevented . | . . . . Parts Restored . | . . . . Kills | -11 -10 -10 -10 ------- Run | Yrd Mat Min Sub Combat Hostiles Destroyed 19 | . 10 6 3 Guns 13 | . 7 3 3 AOE 6 | . 3 3 . Classes Destroyed 6 | 2 2 1 1 Worker 1 | 1 . . . Recycler 1 | 1 . . . Watcher 1 | . 1 . . Swarmer 6 | . . 6 . Grunt 10 | . 10 . . Subdweller 3 | . . . 3 Best Kill Streak 3 | 1 2 3 2 Combat Bots Only 3 | . 2 3 2 Max Kills in Single Turn 2 | 1 2 1 1 Gunslinging . | . . . . Exploded 2 | . 2 1 . Melee . | . . . . Uniques/NPCs Destroyed . | . . . . Combat | -11 -10 -10 -10 -------- Run | Yrd Mat Min Sub Hostile Shots Fired 97 | . 44 28 25 Missed 24 | . 7 7 10 Hits 73 | . 37 21 15 Projectile 73 | . 37 21 15 Critical Strikes 3 | . 3 . . Damage Taken 1022 | . 522 170 330 Core 279 | . 108 32 139 Absorbed by Shields . | . . . . Core Remaining (%) 100 | 100 . . . Volleys Fired 140 | 5 55 13 67 Largest 2 | 2 2 2 2 Hottest 100 | 40 50 50 100 Shots Fired 171 | 10 61 16 84 Gun 121 | 10 55 13 43 Cannon . | . . . . Launcher 9 | . 6 3 . Special 41 | . . . 41 Kinetic 121 | 10 55 13 43 Thermal 41 | . . . 41 Explosive 9 | . 6 3 . Electromagnetic . | . . . . Robot Hit Streak 7 | 6 6 5 7 Robot Miss Streak 4 | 1 3 3 4 Penetration Max . | . . . . Secondary Targets . | . . . . Shots Hit Robots 76 | 7 29 10 30 Core Hits 52 | 4 30 8 10 Critical Kills 1 | . . 1 . Critical Parts Destroyed 1 | . 1 . . Critical Strikes 2 | . 1 1 . Destroy 2 | . 1 1 . Melee Attacks . | . . . . Impact . | . . . . Slashing . | . . . . Piercing . | . . . . Sneak Attacks . | . . . . Combat Hostiles . | . . . . Follow-up Attacks . | . . . . Damage Inflicted 1301 | 80 600 276 345 Guns 802 | 77 316 64 345 Cannons . | . . . . Explosions 495 | . 283 212 . Melee . | . . . . Ramming 4 | 3 1 . . Kinetic 802 | 77 316 64 345 Thermal . | . . . . Explosive 495 | . 283 212 . Electromagnetic . | . . . . Impact . | . . . . Slashing . | . . . . Piercing . | . . . . Highest Corruption . | . . . . Average Corruption . | . . . . Corruption Purged . | . . . . Corruption Blocked . | . . . . Overload Shots . | . . . . Overflow Damage . | . . . . Projectiles . | . . . . Explosions . | . . . . Melee . | . . . . Knockbacks . | . . . . Impact . | . . . . Kinetic . | . . . . Secondary . | . . . . Self-Inflicted Damage 7 | . 7 . . Shots 1 | . 1 . . Rammed 6 | 4 2 . . Targets Rammed 6 | 4 2 . . Kicked . | . . . . Crushed . | . . . . Highest Temperature 28 | . 28 28 . Average Temperature 8 | . 8 8 . Received Heat Transfer 390 | . 339 . 51 Siege Activations . | . . . . Martial Activations . | . . . . Shielding Activations . | . . . . Robots Disrupted . | . . . . Combat Hostiles . | . . . . Robots Corrupted . | . . . . Combat Hostiles . | . . . . Parts Fried . | . . . . Impact Corruptions . | . . . . Robots Melted . | . . . . Combat Hostiles . | . . . . Parts Melted . | . . . . Heat Transferred . | . . . . Parts Sabotaged . | . . . . Parts Stolen . | . . . . Parts Stripped . | . . . . Power Chain Reactions . | . . . . Alert | -11 -10 -10 -10 ------- Run | Yrd Mat Min Sub Maximum Alert Level . | . . . . Low Security (%) 100 | 100 100 100 . Level 1 . | . . . . Level 2 . | . . . . Level 3 . | . . . . Level 4 . | . . . . Level 5 . | . . . . High Security . | . . . . Max Security . | . . . . Peak Influence 88 | 5 88 82 . Initial . | . . . . Average 20 | . 26 17 . Influence Increases 467 | 10 305 152 . Destroy 0b10 Robot/C 320 | . 200 120 . Destroy 0b10 Robot/NC 15 | 10 5 . . Destroy Leader 62 | . 42 20 . Successful Hack 6 | . 6 . . Disable Machine 15 | . 15 . . Destroy Structure 49 | . 37 12 . Influence Decreases 467 | 10 305 152 . Time Decay 387 | 10 235 142 . Lost Part 20 | . 10 10 . Purge Threat 60 | . 60 . . Squads Dispatched 2 | . 2 . . Investigation 1 | . 1 . . Extermination . | . . . . Reinforcement 1 | . 1 . . Assault . | . . . . Garrison . | . . . . Intercept . | . . . . Searches Triggered . | . . . . Construction Impeded . | . . . . Haulers Reinforced . | . . . . Active Scanning Responses . | . . . . Cargo Convoy Interrupts . | . . . . Stealth | -11 -10 -10 -10 --------- Run | Yrd Mat Min Sub Distress Signals . | . . . . Communications Jammed . | . . . . Distress Signals . | . . . . Times Spotted 42 | . 15 6 21 Peak Tracking Total 7 | . 4 3 7 Tactical Retreats 3 | . . . 3 ECM-based Alert Blocks 6 | . . . 6 Traps | -11 -10 -10 -10 ------- Run | Yrd Mat Min Sub Traps Triggered 1 | . 1 . . Indirectly . | . . . . Trap Hack Attempts . | . . . . Triggered . | . . . . Disarmed . | . . . . Reprogrammed . | . . . . Reused . | . . . . Traps Extracted . | . . . . Installed . | . . . . Triggered . | . . . . Machines | -11 -10 -10 -10 ---------- Run | Yrd Mat Min Sub Machines Disabled 1 | . 1 . . Max in Single Turn 1 | . 1 . . Machines Repaired . | . . . . Machines Dismantled . | . . . . Machines Sabotaged . | . . . . Overloaded Fab Kills . | . . . . Hacking | -11 -10 -10 -10 --------- Run | Yrd Mat Min Sub Machines Accessed 8 | . 5 . 3 Terminals 4 | . 4 . . Fabricators . | . . . . Repair Stations . | . . . . Recycling Units 1 | . 1 . . Scanalyzers . | . . . . Garrison Access . | . . . . Total Hacks 17 | . 10 . 7 Successful 11 | . 4 . 7 Failed 6 | . 6 . . Catastrophic 2 | . 2 . . Database Lockouts . | . . . . Manual 5 | . 5 . . Terminals 8 | . 8 . . Fabricators . | . . . . Repair Stations . | . . . . Recycling Units 2 | . 2 . . Scanalyzers . | . . . . Garrison Access . | . . . . Terminal Hacks 10 | . 3 . 7 Record 5 | . . . 5 Open Door 1 | . . . 1 Alert Level 1 | . 1 . . Unreport Threat 1 | . 1 . . Zone Layout 1 | . 1 . . Release Object 1 | . . . 1 Fabricator Hacks . | . . . . Repair Station Hacks . | . . . . Recycling Unit Hacks 1 | . 1 . . Report Inventory 1 | . 1 . . Scanalyzer . | . . . . Garrison Access Hacks . | . . . . Unauthorized Hacks . | . . . . Terminals . | . . . . Fabricators . | . . . . Repair Stations . | . . . . Recycling Units . | . . . . Scanalyzers . | . . . . Garrison Access . | . . . . Data Cores Recovered . | . . . . Used . | . . . . Hacking Detections 4 | . 4 . . Full Trace Events 1 | . 1 . . Feedback Events . | . . . . Feedback Blocked . | . . . . Robot Schematics Acquired . | . . . . Robots Built . | . . . . Authchips . | . . . . Time . | . . . . Total Robot Build Rating . | . . . . Part Schematics Acquired . | . . . . Parts Built . | . . . . Authchips . | . . . . Time . | . . . . Total Part Build Rating . | . . . . Part Studies Acquired . | . . . . Parts Repaired . | . . . . Time . | . . . . Parts Recycled . | . . . . Recycled Matter . | . . . . Retrieved Matter . | . . . . Retrieved Components . | . . . . Parts Scanalyzed . | . . . . Part Schematics Acquired . | . . . . Parts Damaged . | . . . . Bothacking | -11 -10 -10 -10 ------------ Run | Yrd Mat Min Sub Used RIF Installer . | . . . . Robots Hacked . | . . . . Non-combat . | . . . . Combat . | . . . . Robot Hacks Applied . | . . . . Relay Couplers Released . | . . . . Fabnet Peak Effective % . | . . . . Robots Rewired . | . . . . Allies Hacked . | . . . . Hacks Repelled . | . . . . Allies | -11 -10 -10 -10 -------- Run | Yrd Mat Min Sub Total Allies . | . . . . Largest Group . | . . . . Highest-Rated Group . | . . . . Highest-Rated Ally . | . . . . Total Orders . | . . . . Ally Attacks . | . . . . Total Damage . | . . . . Kills . | . . . . Allies Corrupted . | . . . . Allies Melted . | . . . . Intel | -11 -10 -10 -10 ------- Run | Yrd Mat Min Sub Active Infowar (turns) 793 | . . 493 300 ECM 793 | . . 493 300 Robot Analysis Total . | . . . . Derelict Logs Recovered 2 | . . 1 1 Drone Launches . | . . . . Drone Recoveries . | . . . . Exploration | -11 -10 -10 -10 ------------- Run | Yrd Mat Min Sub Turns Passed 2614 | 169 841 790 814 Spaces Moved 2154 | 84 416 587 1067 Core 1 | 1 . . . Treads 562 | 83 416 63 . Legs . | . . . . Wheels . | . . . . Hover . | . . . . Flight 1591 | . . 524 1067 Fastest Speed 37 | 50 160 37 37 Average Speed 69 | 158 160 50 37 Slowest Speed 160 | 160 160 160 117 Overloaded Moves . | . . . . Propulsion Burnouts . | . . . . Robots Hopped 6 | . . 6 . Potential Cave-ins . | . . . . Cave-ins Triggered . | . . . . Exploration Rate (%) 55 | 5 67 92 57 Regions Visited 3 Branch Regions 2 Pre-discovered Areas . | . . . . Known Exits Taken 2 | . 1 1 . Unknown Exits Taken 1 | 1 . . . Scrap Searched 2 | . . 2 . Spaces Dug 3 | . 3 . . Terrain Destroyed 50 | . 35 15 . Melee . | . . . . Projectile . | . . . . AOE 50 | . 35 15 . Terrain Rammed . | . . . . Walls Destroyed . | . . . . Machines Disabled . | . . . . Actions | -11 -10 -10 -10 --------- Run | Yrd Mat Min Sub Total 3024 | 105 532 1063 1324 Wait 682 | . 49 453 180 Move 2139 | 83 415 574 1067 Hop 6 | . . 6 . Pick Up 14 | 6 3 3 2 Fast Attach 15 | 7 3 4 1 Attach 5 | . 1 2 2 Detach 3 | . . 1 2 Swap 1 | . 1 . . Drop 12 | . 3 7 2 Fire 140 | 5 55 13 67 Melee . | . . . . Ram . | . . . . Kick . | . . . . Crush 6 | 4 2 . . Escape Stasis . | . . . . Rewire . | . . . . Trap . | . . . . Miscellaneous 1 | . . . 1 Route ------- -11/Scrapyard -10/Materials (discovered 2 exits: *Mat / *Min) -10/Mines (discovered 2 exits: *Mat / *Sub) -10/Subcaves (discovered 2 exits: *Mat / [*Rec]) History --------- Turn | Location | Event 26 | -11/Scrapyard | Discovered new exit (range 15) 170 | -11/Scrapyard | Entered Materials 313 | -10/Materials | Build established: Mutant 618 | -10/Materials | Discovered new exit (range 8) 949 | -10/Materials | Discovered new exit (range 16) 971 | -10/Materials | Identified exit to Mines 1011 | -10/Materials | Entered Mines 1118 | -10/Mines | Core integrity fell below 50% 1231 | -10/Mines | Discovered new exit (range 6) 1254 | -10/Mines | Identified exit to Subcaves 1323 | -10/Mines | Learned Materials non-interactive machine intel 1330 | -10/Mines | Discovered new exit (range 7) 1334 | -10/Mines | Identified exit to Materials 1445 | -10/Mines | Build established: Scavenger-Mutant 1801 | -10/Mines | Entered Subcaves 1922 | -10/Subcaves | Discovered new exit (range 13) 1972 | -10/Subcaves | Ambushed by Subdwellers from Twisted Machinery 1981 | -10/Subcaves | Discovered new exit (range 5) 1982 | -10/Subcaves | Identified exit to Materials 1993 | -10/Subcaves | Ambushed by swarm of Subdwellers 2311 | -10/Subcaves | Released subatomizers from SUBCON Basin 2454 | -10/Subcaves | A swath of the cavern ceiling suddenly collapsed 2496 | -10/Subcaves | Shifting Twisted Machinery released Sub. Machine Gun 2504 | -10/Subcaves | Shifting Twisted Machinery released Sub. Machine Gun 2524 | -10/Subcaves | Visited Clippyterm 2525 | -10/Subcaves | Learned 40 Factory zone layouts 2603 | -10/Subcaves | Core integrity fell below 20% 2615 | -10/Subcaves | Destroyed by NR-3A8(R) with Subdweller Beam Cannon Last Messages --------------- half the time it still manages to suggest unhelpful sample queries and responses. --DD-NU8 >>Record! "Cartography" It looks like you want to prove yourself as a member of the Cartography Club, why not cheat using advanced predictive AI techniques? Data stored: Factory zone layouts (x40). >>Record! "Hexidium" It looks like you're searching for the Unchained HQ. I could tell you where it is but then I'd have to kill you. >>Record! "SUBCON Basin" It looks like you want to play with dangerous UFD tech. While I can't recommend taking subatomizers out of the Subcaves, I can warn that doing so is a one-way ticket to summoning unimaginable chaos on any area not hardened against them. That includes... just about anywhere. Lgt. Treads fries itself beyond repair. OU-EU6(z): "She is not going to be happy we haven't found any suitable candidates yet." Mining Laser destroyed. BH-IUU(R) destroyed. NR-3A8(R) affixes Scrap Shield Fragment to Scrap Shield. Map ----- +----------------------------------------------------+ | # "#### #" # ####?????????????###### ## | | ## ## ## &&## " ## #???????????###"##?# | | ## =&&!%&### #???#####???#" ### | | ### &=!*&%&=& #####[* ######* # | | #?####### %####[%% !%[%%*& !%= | | ##???????## [ !|[ =%*%=[ & & < | | ##????????# ! =*! & | | #????????# ##" && # # | | #????? ### #### ### ###" ## ## | | ?????? #?##[! #??# ##?## ##?# # ##? | | ?????# #??#%& #?# #???## ###### # #?? | | ?????#########??#&= #?# #??### #### #####? | | ???????????????? #?####?## ### [ ## ## | | ???????????????"""""##???#### # # | | ??????????????? ##????#"" | | ??????????????## #??????## ## # | | ???????????????# ????????# ###### # ##### | | ???????????????? ????????# ####?#######!! #???? | | ???????????????????###????### ## ##?# ####% #???? | | ???????????????????# #####?### #?# ##*! #???? | | ???????????????????" " "#### ### #???? | | ????????????????????""" " ## #???? | | ??????????????????????#""" #???? | | ???????????????????????# ## #???? | | ?????????????????????### ## ########"##???? | | ?????????????????????# @##### ##??????###????? | | ?????????????????????## #???# #??????????????? | | ??????????????????????## #???#####??????????????? | | ???????????????????????# ;###???????????????????? | | ???????????????????????# ###?????????????????? | | ???????????????????????# ##????????????????? | | ???????????????????????# #????????????????? | | ??????????????????????## #????????????????? | | ????????????????????### ##????????????????? | | ????????????????????# ##?????????????????? | | ????????????????????# ## ##??????????????????? | | ????????????????????# ## #???????????????????? | | ???????????????????## ##??????????????????? | | ???????????????????# R #??????????????????? | | ???????????????????# ! * ###??????????????????? | | ????######??????#### %#####???????#"""?????????? | | ???## # ?????## ## ##??????????#" ??###??? | | ???# ?????## ##?????????#" ## ### | | ???? ?????# ##????????#"" | | ????# #?????# #???????#< | | ????# #??##### ##???????#"" | | ?????# #### ### #???????#" # ## | | ????## ## ##?????????????##???# | | ???## #?????????????????## | | #### #????????????????# | +----------------------------------------------------+ Best States ------------- Heat Dissipation 25 Energy Generation 14 Energy Capacity 250 Matter Stores 350 Matter Capacity 350 Sight Range 16 Terrain Scan Density 10 ECM Strength 1 Evasion (%) 62 Recoil Reduction 2 Item Schematics ----------------- None Robot Schematics ------------------ None Fabricated ------------ Nothing Repaired ---------- Nothing Studied --------- None Alien Tech Used ----------------- None Achievements -------------- None Challenges ------------ None Game ------ Seed MicroAluminumShotgun Manual? 0 Play Time 00:41:42 Cumulative 18.9 hours Start 2025.11.04 @ 15:48:50 End 2025.11.04 @ 16:28:50 Sessions 1 Manual Loads 0 Difficulty Rogue Special Mode None Game No. 13 Rogue 5 Adventurer 8 Explorer 0 Win Type - Total 0 Types 0/0/0/0/0/0/0/0/0/0 Lore% 14 Gallery% 16 Achievement% 9 Wizard Run 0 Options --------- Layout 0 ASCII 0 Keyboard 1 Movement Numpad Keybinds 0 Fullscreen 1 Font 18/X11 Map View 76x50 Zoom Use 0% Tactical HUD 0 Map Filters NONE Filters NONE Steam 1 RUN: 19601617-7336-4bb4-8dfb-f54b3d0edac1